Cogmind - Beta 15 @@@ ROGUE MODE // 2025.09.06 @ 01:21:54 Player: LameThyst Result: Destroyed by H-71 Marshal with Heavy Mass Driver Performance ------------- Evolutions (6) 3000 Regions Visited (6) 1200 Robots Destroyed (76) 380 Value Destroyed (1842) 1842 Prototype IDs (12) 240 Alien Tech Used (0) 0 Bonus (1228) 1228 TOTAL SCORE: 7890 Bonus ------- High Alert Combat Kills 86 Follower Combat Kills 868 Registered with UFD 300 Friendly Fire -26 Cogmind --------- Core Integrity 0/1150 Matter 142/300 Energy 100/100 System Corruption 5% Temperature Cool (0) Movement Core (50) Location -4/Factory Parts ------- > --- POWER (2) -------- (None) > --- PROPULSION (6) --- (None) > --- UTILITY (7) ------ (None) > --- WEAPON (4) ------- (None) > --- INVENTORY (5) ---- Light Antimatter Reactor Long-range Terrain Scanner Advanced Actuator Array Mass Driver Improved Remote Datajack Peak State ------------ > --- POWER ------------ Light Nuclear Core > --- PROPULSION ------- Field Propulsion Array Field Propulsion Array Field Propulsion Array > --- UTILITY ---------- Advanced Sensor Array Advanced Signal Interpreter Long-range Terrain Scanner Improved Transmission Jammer Improved Medium Armor Plating Improved Medium Armor Plating Point Defense System > --- WEAPON ----------- Advanced Variable Charge Gun Advanced Variable Charge Gun Coil Gun Overtuned Coil Gun > --- INVENTORY -------- Advanced Myomer Leg Advanced Actuator Array Improved Remote Datajack [Rating: 111] Favorites ----------- Power Ion Engine Engine Ion Engine Power Core Nuclear Core Reactor Light Antimatter Reactor Propulsion Armored Wheel Treads Advanced Treads Leg Advanced Myomer Leg Wheel Armored Wheel Flight Unit Field Propulsion Array Utility Seismic Detector Device Seismic Detector Storage High-capacity Storage Unit Processor A0-MCA's Component Scanner Hackware Improved Hacking Suite Protection Improved Medium Armor Plating Weapon Heavy Assault Rifle Energy Gun EM Pulse Gun Energy Cannon Improved EM Pulse Cannon Ballistic Gun Heavy Assault Rifle Ballistic Cannon Mass Driver Launcher Rocket Launcher Special Weapon Improved Plasma Cutter Impact Weapon Maul Slashing Weapon Axe Build | -11 -10 -10 -10 -7 -5 -4 ------- Run | Yrd Mat Min Sub Scr Fac Fac Slots Evolved 12 | . . . . . 10 2 Power 1 | . . . . . . 1 Propulsion 4 | . . . . . 3 1 Utility 5 | . . . . . 5 . Weapon 2 | . . . . . 2 . Parts Attached 91 | 7 14 2 1 12 33 22 Power 14 | 1 3 1 . 2 4 3 Engine 9 | 1 3 1 . 1 2 1 Core 4 | . . . . 1 2 1 Reactor 1 | . . . . . . 1 Propulsion 20 | 2 4 . 1 3 4 6 Treads 7 | 1 2 . . 1 3 . Leg 1 | . . . . . . 1 Wheel 7 | 1 2 . 1 2 1 . Hover . | . . . . . . . Flight 5 | . . . . . . 5 Utility 30 | 2 3 . . 2 15 8 Device 15 | 1 1 . . 2 7 4 Storage 4 | 1 2 . . . . 1 Processor 3 | . . . . . 2 1 Hackware 1 | . . . . . 1 . Protection 7 | . . . . . 5 2 Artifact . | . . . . . . . Weapon 27 | 2 4 1 . 5 10 5 Energy Gun 7 | . 1 1 . 1 2 2 Energy Cannon 3 | . . . . 1 2 . Ballistic Gun 9 | 2 2 . . 2 1 2 Ballistic Cannon 1 | . . . . . . 1 Launcher 2 | . . . . . 2 . Special Weapon 2 | . . . . 1 1 . Impact Weapon 2 | . 1 . . . 1 . Slashing Weapon 1 | . . . . . 1 . Piercing Weapon . | . . . . . . . Special Melee Weapon . | . . . . . . . Unidentified Prototypes 2 | . . . . . . 2 Corrupted Parts 2 | . . . . . 2 . System Corruption 10 | . . . . . 10 . Parts Lost 29 | . . 1 . . 24 4 Power 6 | . . . . . 5 1 Propulsion 5 | . . . . . 4 1 Utility 7 | . . . . . 5 2 Weapon 11 | . . 1 . . 10 . Highest Loss Streak 11 | . . 1 . . 11 1 To Critical Strikes 1 | . . . . . . 1 Average Backups 14 | 4 11 18 19 19 12 3 Power 1 | . 1 2 2 1 1 . Propulsion 3 | 1 4 6 6 3 1 1 Utility 5 | 1 2 4 5 7 5 1 Weapon 4 | 1 3 5 5 5 3 . Tool/Special . | . . . . . . . Unused Backups 38 | . 7 1 2 20 7 1 Power 5 | . 1 . 1 2 1 . Propulsion 7 | . 2 . . 4 1 . Utility 13 | . 2 . . 8 3 . Weapon 11 | . 2 1 1 6 1 . Tool/Special 2 | . . . . . 1 1 Average Slot Usage (%) 87 | . 99 100 100 93 78 44 Engine 6 | . 13 14 14 5 3 2 Core 3 | . . . . 8 1 1 Treads 10 | . 14 14 14 7 12 . Wheel 10 | . 14 14 14 13 5 . Device 14 | . 14 14 14 14 17 11 Storage 10 | . 14 14 14 14 4 . Processor 1 | . . . . . 3 2 Protection 1 | . . . . . 4 5 Energy Gun 5 | . 3 12 14 3 6 4 Energy Cannon 4 | . . . . 10 2 . Ballistic Gun 10 | . 21 14 14 14 2 2 Impact Weapon 1 | . 3 1 . . 4 . Peak Build Rating 111 | 8 12 12 13 29 75 111 Average Rating 32 | 6 10 11 12 21 61 68 On Entrance 10 | . 7 12 12 13 25 1 Naked Turns 79 | . . . . . 7 72 Heaviest Build 98 | 14 51 51 50 58 98 56 Greatest Support 69 | 20 23 12 12 28 69 45 Greatest Overweight (x) 4 | . 4 4 4 4 3 1 Average Overweight (x) 2 | . 2 4 4 2 1 . Largest Inventory Capacity 20 | 8 20 20 20 20 20 15 Average Capacity 18 | 7 15 20 20 20 19 6 Most Carried 20 | 8 17 20 20 20 19 5 Average Carried 15 | 5 11 18 19 19 13 3 Final Capacity 20 | 8 20 20 20 20 5 5 Final Carried 20 | 7 17 20 20 20 4 5 Class Distribution -------------------- 76% | Mutant 10% | Skirmisher 6% | Scavenger-Mutant 3% | Tank Dominant Class ---------------- Mutant | -10/Materials Mutant | -10/Mines Mutant | -10/Subcaves Mutant | -7/Scraptown Skirmisher | -5/Factory Mutant | -4/Factory Resources | -11 -10 -10 -10 -7 -5 -4 ----------- Run | Yrd Mat Min Sub Scr Fac Fac Matter Collected 2792 | 344 363 165 19 170 1433 298 Remotely 244 | . . . . . 244 . Salvage Created 2742 | 189 470 150 48 . 1634 251 Parts 123 | 14 37 20 1 . 32 19 Haulers Intercepted 1 | . . . . . 1 . Recyclers Shooed 3 | . . . . . 3 . Parts Field Recycled . | . . . . . . . Retrieved Matter . | . . . . . . . Parts Self-Destructed 1 | . . . 1 . . . Prevented . | . . . . . . . Kills | -11 -10 -10 -10 -7 -5 -4 ------- Run | Yrd Mat Min Sub Scr Fac Fac Combat Hostiles Destroyed 44 | . 15 8 1 . 14 6 Melee 5 | . . . . . 5 . Guns 30 | . 15 8 1 . . 6 Cannons 1 | . . . . . 1 . AOE 2 | . . . . . 2 . Classes Destroyed 13 | 2 4 . 1 . 5 1 Worker 8 | . 1 1 . . 5 1 Builder 6 | . 1 . . . 4 1 Tunneler 9 | 6 1 . . . 2 . Hauler 1 | . . . . . 1 . Recycler 6 | 1 . . . . 5 . Mechanic 1 | . . . . . 1 . Operator 1 | . . . . . . 1 Swarmer 21 | . 8 8 . . . 5 Grunt 12 | . 7 . . . 4 1 Duelist 1 | . . . . . 1 . Sentry 4 | . . . . . 4 . Programmer 5 | . . . . . 5 . Subdweller 1 | . . . 1 . . . Best Kill Streak 6 | 2 4 2 1 . 6 4 Combat Bots Only 4 | . 3 2 1 . 2 4 Max Kills in Single Turn 2 | 1 2 1 1 . 2 1 Gunslinging 1 | . 1 . . . . . Exploded 2 | . . . . . 2 . Melee 1 | . . . . . 1 . Uniques/NPCs Destroyed . | . . . . . . . Combat | -11 -10 -10 -10 -7 -5 -4 -------- Run | Yrd Mat Min Sub Scr Fac Fac Hostile Shots Fired 575 | . 77 39 1 . 270 188 Missed 193 | . 21 12 1 . 83 76 Hits 382 | . 56 27 . . 187 112 Melee 7 | . . . . . 7 . Projectile 375 | . 56 27 . . 180 112 AOE 6 | . . . . . 6 . Critical Strikes 23 | . 1 . . . 14 8 Damage Taken 7808 | . 493 263 . . 4602 2450 Core 2217 | . 83 8 . . 923 1203 Absorbed by Shields . | . . . . . . . Ignored by Resistances 102 | . . . . . 102 . Regen/Repaired (Parts) 157 | . 63 . . . 94 . Core Remaining (%) 56 | 100 . . . 63 7 . Volleys Fired 150 | 24 50 22 3 . 24 27 Largest 3 | 2 2 2 2 . 3 3 Hottest 192 | 40 60 60 60 . 180 192 Shots Fired 283 | 48 98 43 6 . 35 53 Gun 256 | 48 98 43 6 . 13 48 Cannon 10 | . . . . . 5 5 Launcher 10 | . . . . . 10 . Special 7 | . . . . . 7 . Kinetic 179 | 48 83 22 3 . 4 19 Thermal 51 | . . . . . 17 34 Explosive 9 | . . . . . 9 . Electromagnetic 44 | . 15 21 3 . 5 . Robot Hit Streak 7 | 6 6 6 7 . 6 4 Robot Miss Streak 4 | 3 3 4 2 . 3 3 Penetration Max . | . . . . . . . Secondary Targets 6 | . 3 1 . . . 2 Max Gunslinging Chain 1 | . 1 1 . . . 1 Shots Hit Robots 219 | 24 56 24 4 . 81 30 Core Hits 102 | 9 30 12 4 . 31 16 Critical Kills 3 | . . . . . 3 . Critical Parts Destroyed 15 | . . . . . 14 1 Critical Strikes 18 | . . . . . 17 1 Destroy 1 | . . . . . . 1 Smash 17 | . . . . . 17 . Melee Attacks 81 | . 4 . . . 77 . Impact 81 | . 4 . . . 77 . Slashing . | . . . . . . . Piercing . | . . . . . . . Sneak Attacks 19 | . 1 . . . 18 . Combat Hostiles . | . . . . . . . Follow-up Attacks . | . . . . . . . Damage Inflicted 6398 | 274 678 321 47 . 3988 1090 Guns 2292 | 274 605 321 47 . 216 829 Cannons 187 | . . . . . 67 120 Explosions 599 | . 25 . . . 481 93 Melee 3160 | . 44 . . . 3116 . Ramming 74 | . 4 . . . 22 48 Kinetic 1425 | 274 497 214 23 . 69 348 Thermal 967 | . 25 . . . 248 694 Explosive 389 | . . . . . 389 . Electromagnetic 383 | . 108 107 24 . 144 . Impact 3160 | . 44 . . . 3116 . Slashing . | . . . . . . . Piercing . | . . . . . . . Highest Corruption 28 | . . . . . 28 5 Average Corruption 9 | . . . . . 10 3 Corruption Purged . | . . . . . . . Corruption Blocked . | . . . . . . . Effects 78 | . . . . . 71 7 Message Errors 17 | . . . . . 16 1 Matter Fused 19 | . . . . . 17 2 Heat Flow Errors 9 | . . . . . 8 1 Energy Discharges 9 | . . . . . 9 . Parts Rejected 1 | . . . . . 1 . Data Loss (minor) 12 | . . . . . 10 2 Data Loss (major) 6 | . . . . . 6 . Misfires 2 | . . . . . 2 . Alerts 3 | . . . . . 2 1 Overload Shots . | . . . . . . . Overflow Damage 1504 | . 9 . . . 1495 . Projectiles . | . . . . . . . Explosions 5 | . 5 . . . . . Melee 1499 | . 4 . . . 1495 . Knockbacks 24 | . . . . . 24 . Impact 23 | . . . . . 23 . Kinetic . | . . . . . . . Secondary 1 | . . . . . 1 . Self-Inflicted Damage 164 | . 2 . . . 55 107 Shots 4 | . . . . . 3 1 Rammed 7 | . 1 . . . 6 . Targets Rammed 7 | . 1 . . . 6 . Kicked . | . . . . . . . Crushed . | . . . . . . . Highest Temperature 451 | . 20 39 . . 219 451 Average Temperature 151 | . 8 23 . . 85 226 Received Heat Transfer 1642 | . 96 84 . . 693 769 Effects 16 | . . . . . . 16 Shutdowns 3 | . . . . . . 3 Energy Bleed 1 | . . . . . . 1 Interference 5 | . . . . . . 5 Matter Decay 3 | . . . . . . 3 Short Circuit 4 | . . . . . . 4 Siege Activations . | . . . . . . . Martial Activations . | . . . . . . . Shielding Activations . | . . . . . . . Robots Disrupted . | . . . . . . . Combat Hostiles . | . . . . . . . Robots Corrupted 18 | . 1 . . . 17 . Combat Hostiles 6 | . . . . . 6 . Parts Fried 21 | . 3 . . . 18 . Impact Corruptions 58 | . 1 . . . 57 . Robots Melted . | . . . . . . . Combat Hostiles . | . . . . . . . Parts Melted 2 | . 1 . . . 1 . Heat Transferred 1407 | . 50 . . . 567 790 Parts Sabotaged . | . . . . . . . Parts Stolen . | . . . . . . . Parts Stripped . | . . . . . . . Power Chain Reactions 1 | . 1 . . . . . Alert | -11 -10 -10 -10 -7 -5 -4 ------- Run | Yrd Mat Min Sub Scr Fac Fac Maximum Alert Level 2 | . . . . . 2 2 Low Security (%) 64 | 100 100 100 . . 45 . Level 1 18 | . . . . . 27 55 Level 2 17 | . . . . . 26 44 Level 3 . | . . . . . . . Level 4 . | . . . . . . . Level 5 . | . . . . . . . High Security . | . . . . . . . Max Security . | . . . . . . . Peak Influence 567 | 10 140 94 . . 567 548 Initial 277 | . . 28 . . . 277 Average 164 | 1 72 40 . . 224 364 Influence Increases 2753 | 35 453 314 . . 1335 616 Destroy 0b10 Robot/C 1280 | . 300 220 . . 500 260 Destroy 0b10 Robot/NC 165 | 35 15 5 . . 90 20 Destroy Leader 284 | . 60 40 . . 142 42 Allied During Kill 215 | . . 19 . . 122 74 Successful Hack 71 | . 25 . . . 46 . Disable Machine 195 | . . . . . 135 60 Destroy Structure 228 | . 8 . . . 150 70 Lose Combat Pursuer 315 | . 45 30 . . 150 90 Influence Decreases 2206 | 35 378 311 78 . 768 636 Entered New Map 379 | . . 47 42 . . 290 Time Decay 1357 | 35 378 254 36 . 448 206 Lost Part 280 | . . 10 . . 230 40 Lost Ally 190 | . . . . . 90 100 Squads Dispatched 24 | . 3 . . . 14 7 Investigation 6 | . 1 . . . 2 3 Extermination 6 | . . . . . 4 2 Reinforcement 8 | . 2 . . . 4 2 Assault . | . . . . . . . Garrison 4 | . . . . . 4 . Intercept . | . . . . . . . Searches Triggered . | . . . . . . . Construction Impeded 2 | . . . . . 1 1 Haulers Reinforced 1 | . . . . . 1 . Active Scanning Responses . | . . . . . . . Cargo Convoy Interrupts 1 | . . . . . 1 . Stealth | -11 -10 -10 -10 -7 -5 -4 --------- Run | Yrd Mat Min Sub Scr Fac Fac Distress Signals 3 | . 2 . . . . 1 Communications Jammed . | . . . . . . . Distress Signals . | . . . . . . . Times Spotted 124 | . 27 13 1 . 47 36 Peak Tracking Total 12 | . 4 3 1 . 11 12 Tactical Retreats 13 | . 2 2 . . 5 4 Traps | -11 -10 -10 -10 -7 -5 -4 ------- Run | Yrd Mat Min Sub Scr Fac Fac Traps Triggered 3 | . 3 . . . . . Indirectly . | . . . . . . . Trap Hack Attempts . | . . . . . . . Triggered . | . . . . . . . Disarmed . | . . . . . . . Reprogrammed . | . . . . . . . Reused . | . . . . . . . Traps Extracted . | . . . . . . . Installed . | . . . . . . . Triggered . | . . . . . . . Machines | -11 -10 -10 -10 -7 -5 -4 ---------- Run | Yrd Mat Min Sub Scr Fac Fac Machines Disabled 13 | . . . . . 9 4 Max in Single Turn 3 | . . . . . 3 1 Garrison Access 1 | . . . . . 1 . Machines Repaired . | . . . . . . . Machines Dismantled . | . . . . . . . Machines Sabotaged . | . . . . . . . Overloaded Fab Kills . | . . . . . . . Hacking | -11 -10 -10 -10 -7 -5 -4 --------- Run | Yrd Mat Min Sub Scr Fac Fac Machines Accessed 17 | . 4 . . 2 7 4 Terminals 7 | . 3 . . . 2 2 Fabricators 2 | . . . . . 1 1 Repair Stations 2 | . 1 . . . 1 . Recycling Units 3 | . . . . . 2 1 Scanalyzers . | . . . . . . . Garrison Access 1 | . . . . . 1 . Total Hacks 41 | . 15 . . 4 15 7 Successful 21 | . 7 . . 4 9 1 Failed 20 | . 8 . . . 6 6 Catastrophic 7 | . 2 . . . 1 4 Database Lockouts . | . . . . . . . Manual 25 | . 12 . . . 6 7 Terminals 22 | . 13 . . . 5 4 Fabricators 5 | . . . . . 3 2 Repair Stations 5 | . 2 . . . 3 . Recycling Units 4 | . . . . . 3 1 Scanalyzers . | . . . . . . . Garrison Access 1 | . . . . . 1 . Terminal Hacks 8 | . . . . 4 4 . Record 3 | . . . . 3 . . Branch Access Points 1 | . . . . . 1 . Recall Investigation 1 | . . . . . 1 . Hauler Manifests 1 | . . . . . 1 . Zone Layout 1 | . . . . . 1 . Proto ID Catalog 1 | . . . . 1 . . Fabricator Hacks . | . . . . . . . Repair Station Hacks 4 | . 2 . . . 2 . Scan Component 2 | . 1 . . . 1 . Repair 2 | . 1 . . . 1 . Recycling Unit Hacks . | . . . . . . . Scanalyzer . | . . . . . . . Garrison Access Hacks 1 | . . . . . 1 . Seal Access 1 | . . . . . 1 . Unauthorized Hacks 8 | . 5 . . . 2 1 Terminals 5 | . 5 . . . . . Botnet 1 | . 1 . . . . . Operators 1 | . 1 . . . . . Skim 3 | . 3 . . . . . Fabricators 1 | . . . . . 1 . Fabnet 1 | . . . . . 1 . Repair Stations . | . . . . . . . Recycling Units 2 | . . . . . 1 1 Fedlink 1 | . . . . . 1 . Scrapoids 1 | . . . . . . 1 Scanalyzers . | . . . . . . . Garrison Access . | . . . . . . . Data Cores Recovered . | . . . . . . . Used . | . . . . . . . Hacking Detections 11 | . 4 . . . 4 3 Full Trace Events 4 | . 1 . . . 1 2 Feedback Events . | . . . . . . . Feedback Blocked . | . . . . . . . Robot Schematics Acquired . | . . . . . . . Robots Built . | . . . . . . . Authchips . | . . . . . . . Time . | . . . . . . . Total Robot Build Rating . | . . . . . . . Part Schematics Acquired . | . . . . . . . Parts Built . | . . . . . . . Authchips . | . . . . . . . Time . | . . . . . . . Total Part Build Rating . | . . . . . . . Parts Repaired 2 | . 1 . . . 1 . Time 45 | . 26 . . . 19 . Parts Recycled . | . . . . . . . Recycled Matter . | . . . . . . . Retrieved Matter . | . . . . . . . Retrieved Components . | . . . . . . . Parts Scanalyzed . | . . . . . . . Part Schematics Acquired . | . . . . . . . Parts Damaged . | . . . . . . . Bothacking | -11 -10 -10 -10 -7 -5 -4 ------------ Run | Yrd Mat Min Sub Scr Fac Fac Used RIF Installer . | . . . . . . . Robots Hacked . | . . . . . . . Non-combat . | . . . . . . . Combat . | . . . . . . . Robot Hacks Applied . | . . . . . . . Relay Couplers Released . | . . . . . . . Fabnet Peak Effective % 3 | . . . . . . 3 Robots Rewired . | . . . . . . . Allies Hacked . | . . . . . . . Hacks Repelled . | . . . . . . . Allies | -11 -10 -10 -10 -7 -5 -4 -------- Run | Yrd Mat Min Sub Scr Fac Fac Total Allies 13 | . . 3 . . 5 5 Largest Group 5 | . . 3 3 3 5 5 Highest-Rated Group 238 | . . 40 40 40 238 235 Highest-Rated Ally 50 | . . 16 16 16 50 47 Total Orders . | . . . . . . . Ally Attacks 151 | . . 14 2 . 92 43 Total Damage 3012 | . . 148 23 . 1986 855 Kills 24 | . . 3 1 . 12 8 Allies Corrupted . | . . . . . . . Allies Melted . | . . . . . . . Intel | -11 -10 -10 -10 -7 -5 -4 ------- Run | Yrd Mat Min Sub Scr Fac Fac Active Infowar (turns) 6789 | 177 852 673 216 2769 1917 185 Sensors 1522 | . . . . . 1349 173 Terrain 2 | . . . . . . 2 Structural 1778 | . . . . . 1778 . Seismic 6512 | 177 852 673 216 2769 1825 . Jamming 10 | . . . . . . 10 Robot Analysis Total . | . . . . . . . Derelict Logs Recovered 5 | . . 1 1 3 . . Drone Launches 3 | . . . . . 3 . Drone Recoveries 2 | . . . . . 2 . Exploration | -11 -10 -10 -10 -7 -5 -4 ------------- Run | Yrd Mat Min Sub Scr Fac Fac Turns Passed 7477 | 264 952 694 216 2772 2142 437 Spaces Moved 4798 | 178 503 409 133 1931 1081 563 Core 298 | 4 . . . . 151 143 Treads 315 | 3 60 . . . 252 . Legs . | . . . . . . . Wheels 3765 | 171 443 409 133 1931 678 . Hover . | . . . . . . . Flight 420 | . . . . . . 420 Fastest Speed 34 | 50 100 150 150 115 50 34 Average Speed 129 | 99 136 150 150 139 147 48 Slowest Speed 385 | 160 160 150 150 150 385 117 Overloaded Moves . | . . . . . . . Propulsion Burnouts . | . . . . . . . Robots Hopped 7 | . . . . . . 7 Potential Cave-ins . | . . . . . . . Cave-ins Triggered . | . . . . . . . Exploration Rate (%) 43 | 8 57 78 17 95 31 17 Regions Visited 6 Branch Regions 3 Pre-discovered Areas 2 | . . . . 2 . . Known Exits Taken . | . . . . . . . Unknown Exits Taken 6 | 1 1 1 1 1 1 . Scrap Searched 7 | . . 1 . 6 . . Spaces Dug 4 | . 3 . . . 1 . Terrain Destroyed 82 | . 7 . . . 41 34 Melee 4 | . 3 . . . 1 . Projectile 10 | . . . . . 1 9 AOE 68 | . 4 . . . 39 25 Terrain Rammed 1 | . . . . . . 1 Walls Destroyed . | . . . . . . . Machines Disabled 1 | . . . . . . 1 Actions | -11 -10 -10 -10 -7 -5 -4 --------- Run | Yrd Mat Min Sub Scr Fac Fac Total 5617 | 218 677 445 147 2033 1430 667 Wait 297 | . 69 . 1 8 175 44 Move 4780 | 177 502 408 132 1930 1080 551 Hop 5 | . . . . . . 5 Pick Up 86 | 9 15 4 5 32 17 4 Fast Attach 37 | 6 3 . . 4 7 17 Attach 37 | 1 . 1 . 1 27 7 Detach 11 | . . . . 2 2 7 Swap 52 | . 18 7 1 16 10 . Drop 73 | 1 15 3 5 40 5 4 Fire 150 | 24 50 22 3 . 24 27 Melee 81 | . 4 . . . 77 . Ram 7 | . 1 . . . 5 1 Kick . | . . . . . . . Crush 1 | . . . . . 1 . Escape Stasis . | . . . . . . . Rewire . | . . . . . . . Trap . | . . . . . . . Miscellaneous . | . . . . . . . Route ------- -11/Scrapyard -10/Materials (discovered 3 exits: [*Mat x2] / [*Min]) -10/Mines (discovered 3 exits: [*Mat x2] / [*Sub]) -10/Subcaves -7/Scraptown (discovered 2 exits: *Fac x2) -5/Factory (discovered 3 exits: *Fac / Upp x2) -4/Factory (discovered 1 exit: [*Res]) History --------- Turn | Location | Event 3 | -11/Scrapyard | Discovered new exit (range 15) 265 | -11/Scrapyard | Entered Materials 317 | -10/Materials | Build established: Mutant 384 | -10/Materials | Discovered new exit (range 5) 717 | -10/Materials | Discovered new exit (range 16) 1116 | -10/Materials | Repaired Assault Rifle 1196 | -10/Materials | Discovered new exit (range 13) 1217 | -10/Materials | Entered Mines 1325 | -10/Mines | Found DCF Scrap (13 items) 1494 | -10/Mines | Found a Scrap Suit stashed away for nefarious purposes 1497 | -10/Mines | Found Scrap Suit 1550 | -10/Mines | Assisted by bots powering up and referring to "LRC-V3" 1699 | -10/Mines | Discovered new exit (range 9) 1703 | -10/Mines | Discovered new exit (range 5) 1901 | -10/Mines | Discovered new exit (range 6) 1911 | -10/Mines | Entered Subcaves 1911 | -10/Subcaves | Accompanied by 3 allies 1912 | -10/Subcaves | Approached by a straggling Scientist 2118 | -10/Subcaves | Scientist uncovered a shortcut to Scraptown 2127 | -10/Subcaves | Entered Scraptown 2127 | -7/Scraptown | Accompanied by 3 allies 2547 | -7/Scraptown | Received an X-ray algorithm 2556 | -7/Scraptown | Discovered new exit (range 9) 2617 | -7/Scraptown | Scanned Subdweller tech in exchange for log data 2622 | -7/Scraptown | Learned location of Extension (-4) 2623 | -7/Scraptown | Learned Research emergency access door positions 2625 | -7/Scraptown | Learned location of 2 exits from Proximity Caves 2823 | -7/Scraptown | Visited Symbiants 2869 | -7/Scraptown | Visited Bundlers 2996 | -7/Scraptown | Visited Spacefarers 3078 | -7/Scraptown | Visited Awakened 3165 | -7/Scraptown | Visited Fellowship of the Rings 3218 | -7/Scraptown | Visited Shadow of the Wyrm 3754 | -7/Scraptown | Visited Comm Corps 3816 | -7/Scraptown | Visited UFD Registry 3816 | -7/Scraptown | Registered with UFD as "Smoothdisc" 3855 | -7/Scraptown | Visited A0-MCA Data Center 3864 | -7/Scraptown | Given a B- rating by A0-MCA 3870 | -7/Scraptown | Found A0-MCA's Component Scanner 3940 | -7/Scraptown | Visited Observation Area 3996 | -7/Scraptown | Visited Science Guys 4245 | -7/Scraptown | Visited Junk Repository 4306 | -7/Scraptown | Visited Scrap Suit Storage 4347 | -7/Scraptown | Visited Supply Room 4382 | -7/Scraptown | Visited Scrapoid Pod Storage 4397 | -7/Scraptown | Found Scrapoid Pod 4438 | -7/Scraptown | Discovered new exit (range 3) 4527 | -7/Scraptown | Visited Junk Repository 4579 | -7/Scraptown | Visited DA-N13 Charitable Foundation 4583 | -7/Scraptown | Found DCF Scrap (30 items) 4899 | -7/Scraptown | Entered Factory 4899 | -5/Factory | Accompanied by 3 allies 4899 | -5/Factory | Evolved 10 slots: Propulsion x3, Utility x5, Weapon x2 5144 | -5/Factory | Repaired Adv. Treads 5194 | -5/Factory | Build established: Skirmisher 5311 | -5/Factory | Lost 3 allies 5648 | -5/Factory | Scrapoid Pod released 05F05-D (x5) 6068 | -5/Factory | Identified exit to Upper Caves 6104 | -5/Factory | Loaded intel: 8 recycling unit locations 6163 | -5/Factory | System corruption reached 10% 6165 | -5/Factory | Discovered new exit (range 13) 6220 | -5/Factory | Lost 4 parts (1n1u2w) 6496 | -5/Factory | Build established: Scavenger-Mutant 6764 | -5/Factory | Lost 11 parts (2p2n3u4w) 6893 | -5/Factory | Garrison activated, responded to threat 6906 | -5/Factory | Lost 3 parts (1p1u1w) 6959 | -5/Factory | Cargo convoy interrupted 6960 | -5/Factory | Released all parts (9) 6961 | -5/Factory | Core integrity fell below 50% 6970 | -5/Factory | Lost 3 parts (1p1n1w) 7004 | -5/Factory | Build established: Mutant 7039 | -5/Factory | Core integrity fell below 20% 7041 | -5/Factory | Entered another Factory area 7041 | -4/Factory | Evolved 2 slots: Power x1, Propulsion x1 7107 | -4/Factory | Scrapoid reinforcements arrived 7148 | -4/Factory | Spotted B-86 Titan 7300 | -4/Factory | Lost 3 allies 7399 | -4/Factory | Released all parts (12) 7450 | -4/Factory | Core integrity fell below 50% 7474 | -4/Factory | Core integrity fell below 20% 7475 | -4/Factory | Discovered new exit (range 15) 7478 | -4/Factory | Destroyed by H-71 Marshal with Heavy Mass Driver Last Messages --------------- 07447_ Slug penetrates G-67 Veteran. 07449_ Penetrated by Slug. 07457_ Slug penetrates A-15 Conveyor. 07457_ Penetrated by Slug. 07457_ Slug penetrates H-77 Assassin. 07460_ Penetrated by Slug. 07464_ Slug penetrates Wall. 07464_ Penetrated by Slug. 07467_ R-10 Processor suffers critical hit (Destroy). 07467_ Slug penetrates Wall. 07468_ System corrupted: Matter fused (-5). 07470_ Penetrated by Slug. 07470_ Slug penetrates Wall. 07474_ Penetrated by Slug. 07474_ Slug penetrates Wall. 07474_ Penetrated by Slug. 07474_ Slug penetrates Wall. 07475_ EXIT=FOUND 07478_ Penetrated by Slug. Map ----- +----------------------------------------------------+ | ?????????????????????????????????????????????????? | | ?????????????????????????????????????????????????? | | ?????????????????????????????????????????????????? | | ?????????????????????????????????????????????????? | | ?????????????????????????????????????????????????? | | ?????????????????????????????????????????????????? | | ?????????????????????????????????????????????????? | | ?????????????????????????????????????????????????? | | ?????????????????????????????????????????????????? | | ?????????????????????????????????????????????????? | | ??????????????????????? ##??????????????????????? | | ????????????????????? ??????????????????????? | | ?????????????????? ??????????????????????? | | ?????????????????# ??????????????????????? | | ?????????????????# ??????????????????????? | | ?????????????????# H ??????????????????????? | | ?????????????????# Y ??????????????????????? | | ?????????????????# ??????????????????????? | | ?????????????????# ??????????????????????? | | ?????????????????# ??????????????????????? | | ??????????????????# #??????????????????????? | | ??????????????????# #??????????????????????? | | ??????????????????# #??????????????????????? | | ??????????????????# #??????????????????????? | | ??????????????????# #??????????????????????? | | ??????????????????+ @#??????????? ????????? | | ??????????????????# % #?????????? ????????? | | ??????????????????# #???????? ????????? | | ??????????????????# ######## ???????? | | ??????????????????# ! ???????? | | ??????????????????# w ??????? | | ??????????????????# % = ??????? | | ??????????????????# ??????? | | ??????????????????# ??????? | | ??????????????????# % ;####### ??????? | | ??????????????????# R ##??????? ???????? | | ??????????????????+ #??????????##??????????? | | ??????????????????# #??????????????????????? | | ??????????????????# #??????????????????????? | | ??????????????????# #??????????????????????? | | ??????????????????# #??????????????????????? | | ??????????????????# #??????????????????????? | | ??????????????????# #??????????????????????? | | ??????????????????# #??????????????????????? | | ??????????????????# #??????????????????????? | | ??????????????????#[ #??????????????????????? | | ######????????????# #??????????????????????? | | #????????????# #??????????????????????? | | " #????????????# #??????????????????????? | | " " #????????????# #??????????????????????? | +----------------------------------------------------+ Best States ------------- Heat Dissipation 43 Energy Generation 19 Energy Capacity 315 Matter Stores 300 Matter Capacity 300 Sight Range 16 Robot Scan Range 16 Terrain Scan Density 10 Jamming Range 14 Armor Coverage 450 Resistance: KI 30 Resistance: TH 20 Point Defense Rating 80 Evasion (%) 63 Recoil Reduction 3 Offensive Hacking 12 Item Schematics ----------------- None Robot Schematics ------------------ None Fabricated ------------ Nothing Repaired ---------- Assault Rifle | 37% | -10/Materials Adv. Treads | 44% | -5/Factory Alien Tech Used ----------------- None Achievements -------------- None Challenges ------------ None Game ------ Seed BiocellSmallTelecube Manual? 0 Play Time 01:23:31 Cumulative 127.6 hours Start 2025.09.01 @ 03:45:44 End 2025.09.06 @ 01:21:54 Sessions 6 Manual Loads 0 Difficulty Rogue Special Mode None Game No. 141 Rogue 141 Adventurer 0 Explorer 0 Win Type - Total 0 Types 0/0/0/0/0/0/0/0/0/0 Lore% 62 Gallery% 46 Achievement% 37 Wizard Run 0 Options --------- Layout 1 ASCII 0 Keyboard 0 Movement Mouse Keybinds 0 Fullscreen 2 Font 48/Smallcaps Map View 50x35 Zoom Use 0% Tactical HUD 1 Map Filters NONE Filters NONE Steam 0 RUN: 15bd3682-a446-4abe-b6c2-1f45a7a93c7e